fUSD/lending_fUSD_20240412
["ID","MTS","AMOUNT","RATE_DAILY","PERIOD"]
[322342283,1712956594275,-500.0,0.00049315,120]
[322342284,1712956594300,-533.57,0.00049315,120]
[322342285,1712956594328,-1575.29,0.00049315,120]
[322342286,1712956594355,-3096.99,0.00049315,120]
[322342287,1712956594381,-500.0,0.00049315,120]
[322342288,1712956594406,-500.0,0.00049315,120]
[322342289,1712956594432,-581.58,0.00049315,120]
[322342290,1712956594460,-500.0,0.00049315,120]
[322342291,1712956594485,-632.18,0.00049315,120]
[322342292,1712956594512,-895.36,0.00049315,120]
[322342293,1712956594538,-500.0,0.00049315,120]
[322342294,1712956594564,-941.44,0.00049315,120]
[322342295,1712956594592,-1111.5,0.00049315,120]
[322342296,1712956594619,-774.82,0.00049315,120]
[322342297,1712956594645,-8132.3,0.00049315,120]
[322342298,1712956594672,-500.0,0.00049315,120]
[322342299,1712956594699,-500.0,0.00049315,120]
[322342300,1712956594724,-750.39,0.00049315,120]
[322342301,1712956594749,-500.0,0.00049315,120]
[322342302,1712956594774,-1572.03,0.00049315,120]
[322342303,1712956594800,-3312.21,0.00049315,120]
[322342304,1712956594826,-442.90032836,0.00049315,120]
[322342305,1712956594852,-971.73,0.00049315,120]
[322342306,1712956594878,-1402.91,0.00049315,120]
[322342307,1712956594903,-533.79,0.00049315,120]
[322342308,1712956594930,-500.0,0.00049315,120]
[322342309,1712956594955,-500.0,0.00049315,120]
[322342310,1712956594981,-500.0,0.00049315,120]
[322342311,1712956595007,-500.0,0.00049315,120]
[322342312,1712956595033,-500.0,0.00049315,120]
[322342313,1712956595059,-546.83,0.00049315,120]
[322342314,1712956595086,-770.12,0.00049315,120]
[322342315,1712956595112,-500.0,0.00049315,120]
[322342316,1712956595140,-500.0,0.00049315,120]
[322342317,1712956595167,-500.0,0.00049315,120]
[322342318,1712956595193,-6667.16,0.00049315,120]
[322342319,1712956595224,-562.65,0.00049315,120]
[322342320,1712956595251,-2128.49,0.00049315,120]
[322342321,1712956595277,-592.68,0.00049315,120]
[322342322,1712956595305,-576.79,0.00049315,120]
[322342323,1712956595335,-2572.2,0.00049315,120]
[322342324,1712956595403,-500.0,0.00049315,120]
[322342325,1712956595434,-225.8,0.00049315,120]
[322342326,1712956595462,-500.0,0.00049315,120]
[322342327,1712956595489,-500.0,0.00049315,120]
[322342328,1712956595517,-500.0,0.00049315,120]
[322342329,1712956595544,-789.07,0.00049315,120]
[322342330,1712956595571,-940.58,0.00049315,120]
[322342331,1712956595598,-500.0,0.00049315,120]
[322342332,1712956595624,-1810.71,0.00049315,120]
[322342333,1712956595651,-1488.79,0.00049315,120]
[322342334,1712956595679,-3983.01,0.00049315,120]
[322342335,1712956595706,-194.71079567,0.00049315,120]
[322342336,1712956595732,-627.13,0.00049315,120]
[322342337,1712956595758,-1220.51,0.00049315,120]
[322342338,1712956595786,-500.0,0.00049315,120]
[322342339,1712956595812,-500.0,0.00049315,120]
[322342340,1712956595840,-976.12,0.00049315,120]
[322342341,1712956595868,-970.66,0.00049315,120]
[322342342,1712956595895,-1553.59,0.00049315,120]
[322342343,1712956595922,-500.0,0.00049315,120]
[322342344,1712956595949,-2065.52,0.00049315,120]
[322342345,1712956595976,-618.19,0.00049315,120]
[322342346,1712956596003,-500.0,0.00049315,120]
[322342347,1712956596032,-1215.24,0.00049315,120]
[322342348,1712956596058,-500.0,0.00049315,120]
[322342349,1712956596088,-500.0,0.00049315,120]
[322342350,1712956596116,-1686.35,0.00049315,120]
[322342351,1712956596143,-3280.57,0.00049315,120]
[322342352,1712956596175,-667.3,0.00049315,120]
[322342353,1712956596203,-500.0,0.00049315,120]
[322342354,1712956596231,-601.21,0.00049315,120]
[322342355,1712956596258,-500.0,0.00049315,120]
[322342356,1712956596284,-500.0,0.00049315,120]
[322342357,1712956596310,-500.0,0.00049315,120]
[322342358,1712956596336,-846.97,0.00049315,120]
[322342359,1712956596362,-500.0,0.00049315,120]
[322342360,1712956596390,-500.0,0.00049315,120]
[322342361,1712956596416,-1495.44,0.00049315,120]
[322342362,1712956596441,-500.0,0.00049315,120]
[322342363,1712956596471,-500.0,0.00049315,120]
[322342364,1712956596496,-808.45,0.00049315,120]
[322342365,1712956596522,-935.04,0.00049315,120]
[322342366,1712956596552,-1846.15,0.00049315,120]
[322342367,1712956596578,-1507.31,0.00049315,120]
[322342368,1712956596603,-1294.69,0.00049315,120]
[322342369,1712956596628,-500.0,0.00049315,120]
[322342370,1712956596654,-2247.71,0.00049315,120]
[322342371,1712956596678,-896.47,0.00049315,120]
[322342372,1712956596702,-1472.35,0.00049315,120]
[322342373,1712956596727,-580.22,0.00049315,120]
[322342374,1712956596752,-2397.12,0.00049315,120]
[322342375,1712956596777,-880.42,0.00049315,120]
[322342376,1712956596803,-1322.27,0.00049315,120]
[322342377,1712956596829,-226.44,0.00049315,120]
[322342378,1712956596854,-543.71,0.00049315,120]
[322342379,1712956596879,-500.0,0.00049315,120]
[322342380,1712956596904,-1600.11,0.00049315,120]
[322342381,1712956596929,-527.08,0.00049315,120]
[322342382,1712956596953,-1007.86,0.00049315,120]
[322342383,1712956596978,-2299.87,0.00049315,120]
[322342384,1712956597002,-500.0,0.00049315,120]
[322342385,1712956597028,-3212.13,0.00049315,120]
[322342386,1712956597052,-1236.5,0.00049315,120]
[322342387,1712956597080,-6534.43,0.00049315,120]
[322342388,1712956597104,-522.9,0.00049315,120]
[322342389,1712956597130,-880.9,0.00049315,120]
[322342390,1712956597156,-500.0,0.00049315,120]
[322342391,1712956597181,-1933.1,0.00049315,120]
[322342392,1712956597205,-500.0,0.00049315,120]
[322342393,1712956597231,-500.0,0.00049315,120]
[322342394,1712956597255,-500.0,0.00049315,120]
[322342395,1712956597283,-1985.47,0.00049315,120]
[322342396,1712956597309,-500.0,0.00049315,120]
[322342397,1712956597335,-1845.09,0.00049315,120]
[322342398,1712956597359,-807.07,0.00049315,120]
[322342399,1712956597384,-1048.99,0.00049315,120]
[322342400,1712956597414,-500.0,0.00049315,120]
[322342401,1712956597440,-1348.38,0.00049315,120]
[322342402,1712956597465,-453.59,0.00049315,120]
[322342403,1712956597492,-905.59,0.00049315,120]
[322342404,1712956597519,-3000.0,0.00049315,120]
[322342405,1712956597547,-3905.62,0.00049315,120]
[322342406,1712956597571,-500.0,0.00049315,120]
[322342407,1712956597598,-500.0,0.00049315,120]
[322342408,1712956597622,-1017.18,0.00049315,120]
[322342409,1712956597647,-500.0,0.00049315,120]
[322342410,1712956597672,-1495.51,0.00049315,120]
[322342411,1712956597696,-500.0,0.00049315,120]
[322342412,1712956597721,-500.0,0.00049315,120]
[322342413,1712956598671,-500.0,0.00049315,120]
[322342414,1712956599228,-2186.21,0.00049315,120]
[322342415,1712956599256,-987.63,0.00049315,120]
[322342416,1712956599284,-500.0,0.00049315,120]
[322342417,1712956599310,-500.0,0.00049315,120]
[322342418,1712956599337,-1423.81,0.00049315,120]
[322342419,1712956599361,-500.0,0.00049315,120]
[322342420,1712956599385,-556.18,0.00049315,120]
[322342421,1712956599410,-1543.83,0.00049315,120]
[322342422,1712956599434,-16891.89,0.00049315,120]
[322342423,1712956599459,-500.0,0.00049315,120]
[322342424,1712956599484,-500.0,0.00049315,120]
[322342425,1712956599509,-1727.76,0.00049315,120]
[322342426,1712956599533,-500.0,0.00049315,120]
[322342427,1712956599557,-1334.55,0.00049315,120]
[322342428,1712956599582,-3445.8,0.00049315,120]
[322342429,1712956599709,-3743.4,0.00049315,120]
[322342430,1712956599733,-650.65,0.00049315,120]
[322342431,1712956599759,-1000.0,0.00049315,120]
[322342432,1712956599784,-1000.0,0.00049315,120]
[322342433,1712956599808,-335.8817512,0.00049315,120]
[322342434,1712956600069,500.0,0.00047945,31]
[322342435,1712956600105,500.0,0.00048493,31]
[322342436,1712956600134,500.0,0.00048219,31]
[322342437,1712956600164,500.0,0.00046849,31]
[322342438,1712956600282,500.0,0.00048493,31]
[322342439,1712956600324,500.0,0.00048767,31]
[322342440,1712956600364,500.0,0.00048767,31]
[322342441,1712956600418,500.0,0.00049041,31]
[322342442,1712956600455,960.84,0.00046575,31]
[322342443,1712956600486,500.0,0.00049041,31]
[322342444,1712956600515,5000.0,0.000489,120]
[322342445,1712956600572,960.84,0.00046849,31]
[322342446,1712956600607,500.0,0.00049315,120]
[322342447,1712956600637,500.0,0.00049315,120]
[322342448,1712956600671,960.84,0.00047123,31]
[322342449,1712956600715,960.84,0.00047397,31]
[322342450,1712956600755,960.84,0.00047671,31]
[322342451,1712956600807,505.12540249,0.00046575,31]
[322342452,1712956600903,960.84,0.00047945,31]
[322342453,1712956600938,500.0,0.00046575,31]
[322342454,1712956600968,500.0,0.00046575,31]
[322342455,1712956600997,960.84,0.00048219,31]
[322342456,1712956601030,1096.44231741,0.00047,31]
[322342457,1712956601072,500.0,0.00046575,31]
[322342458,1712956601102,960.84,0.00048493,31]
[322342459,1712956601144,960.84,0.00048767,31]
[322342460,1712956601178,500.0,0.00046575,31]
[322342461,1712956601207,500.0,0.00046849,31]
[322342462,1712956601236,960.84,0.00049041,31]
[322342463,1712956601288,960.84,0.00049315,120]
[322342464,1712956601316,500.0,0.00047123,31]
[322342465,1712956601351,500.0,0.00046575,31]
[322342466,1712956601389,500.0,0.00047397,31]
[322342467,1712956601432,500.0,0.00047671,31]
[322342468,1712956601473,500.0,0.00047945,31]
[322342469,1712956601507,500.0,0.00046575,31]
[322342470,1712956601577,500.0,0.00046575,31]
[322342471,1712956601615,500.0,0.00046575,31]
[322342472,1712956601712,500.0,0.00046575,31]
[322342473,1712956601744,500.0,0.00046849,31]
[322342474,1712956601772,500.0,0.00048219,31]
[322342475,1712956601804,500.0,0.00046849,31]
[322342476,1712956601833,500.0,0.00046849,31]
[322342477,1712956601861,500.0,0.00046575,31]
[322342478,1712956601893,500.0,0.00048493,31]
[322342479,1712956601988,500.0,0.00046849,31]
[322342480,1712956602024,500.0,0.00048767,31]
[322342481,1712956602052,500.0,0.00047123,31]
[322342482,1712956602302,500.0,0.00046575,31]
[322342483,1712956602342,500.0,0.00049041,31]
[322342484,1712956602373,573.55,0.00046575,31]
[322342485,1712956602403,500.0,0.00047397,31]
[322342486,1712956602440,500.0,0.00049315,120]
[322342487,1712956602472,573.55,0.00046849,31]
[322342488,1712956602505,500.0,0.00047671,31]
[322342489,1712956602545,500.0,0.00046849,31]
[322342490,1712956602582,573.55,0.00047123,31]
[322342491,1712956602613,500.0,0.00047945,31]
[322342492,1712956602652,500.0,0.00046575,31]
[322342493,1712956602681,213.62,0.00047123,31]
[322342494,1712956602719,500.0,0.00048219,31]
[322342495,1712956602748,500.0,0.00046575,31]
[322342496,1712956602788,500.0,0.00046575,31]
[322342497,1712956602825,500.0,0.00048493,31]
[322342498,1712956602857,573.55,0.00047397,31]
[322342499,1712956602900,500.0,0.00048767,31]
[322342500,1712956602929,573.55,0.00047671,31]
[322342501,1712956602958,500.0,0.00046575,31]
[322342502,1712956602988,500.0,0.00049041,31]
[322342503,1712956603018,573.55,0.00047945,31]
[322342504,1712956603051,500.0,0.00049315,120]
[322342505,1712956603083,573.55,0.00048219,31]
[322342506,1712956603217,573.55,0.00048493,31]
[322342507,1712956603259,573.55,0.00048767,31]
[322342508,1712956603291,500.0,0.00046575,31]
[322342509,1712956603437,500.0,0.00046849,31]
[322342510,1712956603571,500.0,0.00046575,31]
[322342511,1712956603615,500.0,0.00047123,31]
[322342512,1712956603646,573.55,0.00049041,31]
[322342513,1712956603691,500.0,0.00046849,31]
[322342514,1712956603725,529.81,0.00046575,31]
[322342515,1712956603754,500.0,0.00047123,31]
[322342516,1712956603783,573.55,0.00049315,120]
[322342517,1712956603813,500.0,0.00047397,31]
[322342518,1712956603849,500.0,0.00046575,31]
[322342519,1712956603882,500.0,0.00046575,31]
[322342520,1712956603911,500.0,0.00046575,31]
[322342521,1712956603939,500.0,0.00047671,31]
[322342522,1712956603972,3091.97,0.00046575,31]
[322342523,1712956604016,3091.97,0.00046849,31]
[322342524,1712956604047,500.0,0.00046575,31]
[322342525,1712956604087,3091.97,0.00047123,31]
[322342526,1712956604118,500.0,0.00047945,31]
[322342527,1712956604152,500.0,0.00046849,31]
[322342528,1712956604185,500.0,0.00046575,31]
[322342529,1712956604215,3091.97,0.00047397,31]
[322342530,1712956604243,959.05932493,0.0004,30]
[322342531,1712956604315,500.0,0.00048219,31]
[322342532,1712956604448,500.0,0.00047123,31]
[322342533,1712956604484,500.0,0.00046849,31]
[322342534,1712956604518,3091.97,0.00047671,31]
[322342535,1712956604589,500.0,0.00048493,31]
[322342536,1712956604648,500.0,0.00047397,31]
[322342537,1712956604724,500.0,0.00047123,31]
[322342538,1712956604752,3091.97,0.00047945,31]
[322342539,1712956604782,496.0,0.00048767,31]
[322342540,1712956604824,546.03,0.00046575,31]
[322342541,1712956604867,500.0,0.00047671,31]
[322342542,1712956604897,3091.97,0.00048219,31]
[322342543,1712956604927,1134.25,0.00046575,31]
[322342544,1712956604967,500.0,0.00047945,31]
[322342545,1712956604996,3091.97,0.00048493,31]
[322342546,1712956605028,1134.25,0.00046849,31]
[322342547,1712956605058,500.0,0.00046575,31]
[322342548,1712956605097,3091.97,0.00048767,31]
[322342549,1712956605125,506.6,0.00046575,31]
[322342550,1712956605153,1134.25,0.00047123,31]
[322342551,1712956605189,500.0,0.00048219,31]
[322342552,1712956605220,500.0,0.00046575,31]
[322342553,1712956605249,3091.97,0.00049041,31]
[322342554,1712956605279,1134.25,0.00047397,31]
[322342555,1712956605309,506.6,0.00046849,31]
[322342556,1712956605350,1134.25,0.00047671,31]
[322342557,1712956605379,3091.97,0.00049315,120]
[322342558,1712956605408,500.0,0.00048493,31]
[322342559,1712956605443,506.6,0.00047123,31]
[322342560,1712956605485,1134.25,0.00047945,31]
[322342561,1712956605515,500.0,0.00048767,31]
[322342562,1712956605587,506.6,0.00047397,31]
[322342563,1712956605632,1134.25,0.00048219,31]
[322342564,1712956605661,417.57,0.00049041,31]
[322342565,1712956605690,506.6,0.00047671,31]
[322342566,1712956605723,500.0,0.00046575,31]
[322342567,1712956605760,506.6,0.00047945,31]
[322342568,1712956605790,1134.25,0.00048493,31]
[322342569,1712956605832,1134.25,0.00048767,31]
[322342570,1712956605860,506.6,0.00048219,31]
[322342571,1712956605896,500.0,0.00046575,31]
[322342572,1712956605928,1134.25,0.00049041,31]
[322342573,1712956605956,506.6,0.00048493,31]
[322342574,1712956605996,1134.25,0.00049315,120]
[322342575,1712956606028,506.6,0.00048767,31]
[322342576,1712956606103,500.0,0.00046575,31]
[322342577,1712956606132,500.0,0.00046575,31]
[322342578,1712956606165,500.0,0.00046575,31]
[322342579,1712956606209,500.0,0.00046849,31]
[322342580,1712956606255,506.6,0.00049041,31]
[322342581,1712956606287,500.0,0.00047123,31]
[322342582,1712956606351,500.0,0.00046575,31]
[322342583,1712956606458,506.6,0.00049315,120]
[322342584,1712956606489,500.0,0.00046575,31]
[322342585,1712956606527,500.0,0.00046849,31]
[322342586,1712956606566,500.0,0.00046575,31]
[322342587,1712956606596,716.46,0.00046575,31]
[322342588,1712956606629,1256.66,0.00046575,31]
[322342589,1712956606657,500.0,0.00046849,31]
[322342590,1712956606689,500.0,0.00046849,31]
[322342591,1712956606717,716.46,0.00046849,31]
[322342592,1712956606784,1256.66,0.00046849,31]
[322342593,1712956606812,500.0,0.00047123,31]
[322342594,1712956606848,716.46,0.00047123,31]
[322342595,1712956606883,1256.66,0.00047123,31]
[322342596,1712956606916,500.0,0.00047123,31]
[322342597,1712956606944,716.46,0.00047397,31]
[322342598,1712956606973,500.0,0.00047397,31]
[322342599,1712956607007,534.05,0.00046575,31]
[322342600,1712956607041,1256.66,0.00047397,31]
[322342601,1712956607071,716.46,0.00047671,31]
[322342602,1712956607104,500.0,0.00047397,31]
[322342603,1712956607132,500.0,0.00047671,31]
[322342604,1712956607160,534.05,0.00046849,31]
[322342605,1712956607191,716.46,0.00047945,31]
[322342606,1712956607327,326.96704778,0.00047945,31]
[322342607,1712956607362,500.0,0.00047671,31]
[322342608,1712956607391,534.05,0.00047123,31]
[322342609,1712956607421,1256.66,0.00047671,31]
[322342610,1712956607464,716.46,0.00048219,31]
[322342611,1712956607501,500.0,0.00047945,31]
[322342612,1712956607536,534.05,0.00047397,31]
[322342613,1712956607565,1256.66,0.00047945,31]
[322342614,1712956607605,500.0,0.00046575,31]
[322342615,1712956607644,500.0,0.00048219,31]
[322342616,1712956607674,534.05,0.00047671,31]
[322342617,1712956607703,500.0,0.00046575,31]
[322342618,1712956607731,1256.66,0.00048219,31]
[322342619,1712956607768,716.46,0.00048493,31]
[322342620,1712956607800,500.0,0.00048493,31]
[322342621,1712956607832,20831.95244941,0.00045,60]
[322342622,1712956607863,534.05,0.00047945,31]
[322342623,1712956607892,500.0,0.00046575,31]
[322342624,1712956607921,1256.66,0.00048493,31]
[322342625,1712956607958,716.46,0.00048767,31]
[322342626,1712956607991,500.0,0.00048767,31]
[322342627,1712956608020,534.05,0.00048219,31]
[322342628,1712956608048,1256.66,0.00048767,31]
[322342629,1712956608086,716.46,0.00049041,31]
[322342630,1712956608115,500.0,0.00046575,31]
[322342631,1712956608147,500.0,0.00049041,31]
[322342632,1712956608176,534.05,0.00048493,31]
[322342633,1712956608205,1256.66,0.00049041,31]
[322342634,1712956608233,716.46,0.00049315,120]
[322342635,1712956608351,500.0,0.00049315,120]
[322342636,1712956608380,534.05,0.00048767,31]
[322342637,1712956608425,500.0,0.00046849,31]
[322342638,1712956608464,534.05,0.00049041,31]
[322342639,1712956608495,1256.66,0.00049315,120]
[322342640,1712956608547,1992.86,0.00046575,31]
[322342641,1712956608576,500.0,0.00046575,31]
[322342642,1712956608616,534.05,0.00049315,120]
[322342643,1712956608649,342.34,0.00047123,31]
[322342644,1712956608763,500.0,0.00046575,31]
[322342645,1712956608805,1992.86,0.00046849,31]
[322342646,1712956608849,1992.86,0.00047123,31]
[322342647,1712956608898,1992.86,0.00047397,31]
[322342648,1712956608937,157.041306,0.00046448,56]
[322342649,1712956608965,500.0,0.00046575,31]
[322342650,1712956608998,823.88,0.00046575,31]
[322342651,1712956609035,1992.86,0.00047671,31]
[322342652,1712956609068,500.0,0.00046849,31]
[322342653,1712956609107,823.88,0.00046849,31]
[322342654,1712956609136,500.0,0.00046575,31]
[322342655,1712956609179,1992.86,0.00047945,31]
[322342656,1712956609226,500.0,0.00047123,31]
[322342657,1712956609268,823.88,0.00047123,31]
[322342658,1712956609316,500.0,0.00047397,31]
[322342659,1712956609355,823.88,0.00047397,31]
[322342660,1712956609403,1992.86,0.00048219,31]
[322342661,1712956609440,500.0,0.00047671,31]
[322342662,1712956609475,500.0,0.00046575,31]
[322342663,1712956609513,823.88,0.00047671,31]
[322342664,1712956609552,1992.86,0.00048493,31]
[322342665,1712956609595,500.0,0.00047945,31]
[322342666,1712956609637,823.88,0.00047945,31]
[322342667,1712956609921,823.88,0.00048219,31]
[322342668,1712956609956,500.0,0.00048219,31]
[322342669,1712956609999,1992.86,0.00048767,31]
[322342670,1712956610041,823.88,0.00048493,31]
[322342671,1712956610239,500.0,0.00048493,31]
[322342672,1712956610284,211.22853092,0.00046575,31]
[322342673,1712956610321,1992.86,0.00049041,31]
[322342674,1712956610371,823.88,0.00048767,31]
[322342675,1712956610407,500.0,0.00046575,31]
[322342676,1712956610444,500.0,0.00046575,31]
[322342677,1712956610487,1992.86,0.00049315,120]
[322342678,1712956610528,823.88,0.00049041,31]
[322342679,1712956610563,547.17,0.00048767,31]
[322342680,1712956610598,500.0,0.00046849,31]
[322342681,1712956610647,823.88,0.00049315,120]
[322342682,1712956610703,199.94,0.00047123,31]
[322342683,1712956610753,500.0,0.00046849,31]
[322342684,1712956610829,500.0,0.00046575,31]
[322342685,1712956610876,500.0,0.00047123,31]
[322342686,1712956610924,675.31,0.00046575,31]
[322342687,1712956610958,433.81733121,0.00047397,31]
[322342688,1712956610994,500.0,0.00046575,31]
[322342689,1712956611038,500.0,0.00046849,31]
[322342690,1712956611081,675.31,0.00046849,31]
[322342691,1712956611119,500.0,0.00046575,31]
[322342692,1712956611157,379.34249213,0.00047123,31]
[322342693,1712956611200,675.31,0.00047123,31]
[322342694,1712956611365,675.31,0.00047397,31]
[322342695,1712956611433,500.0,0.00046575,31]
[322342696,1712956611535,675.31,0.00047671,31]
[322342697,1712956611569,500.0,0.00046849,31]
[322342698,1712956611612,2237.47,0.00046575,31]
[322342699,1712956611654,675.31,0.00047945,31]
[322342700,1712956611686,500.0,0.00046575,31]
[322342701,1712956611722,500.0,0.00046575,31]
[322342702,1712956611754,500.0,0.00046575,31]
[322342703,1712956611797,164.6,0.00047123,31]
[322342704,1712956611850,2237.47,0.00046849,31]
[322342705,1712956611891,500.0,0.00046575,31]
[322342706,1712956611930,675.31,0.00048219,31]
[322342707,1712956611967,500.0,0.00046849,31]
[322342708,1712956612002,500.0,0.00046849,31]
[322342709,1712956612044,2237.47,0.00047123,31]
[322342710,1712956612078,500.0,0.00046849,31]
[322342711,1712956612115,675.31,0.00048493,31]
[322342712,1712956612221,517.09015521,0.00047123,31]
[322342713,1712956612255,500.0,0.00047123,31]
[322342714,1712956612299,500.0,0.00047123,31]
[322342715,1712956612336,2237.47,0.00047397,31]
[322342716,1712956612371,500.0,0.00047397,31]
[322342717,1712956612403,675.31,0.00048767,31]
[322342718,1712956612451,2237.47,0.00047671,31]
[322342719,1712956612486,500.0,0.00047397,31]
[322342720,1712956612526,500.0,0.00047671,31]
[322342721,1712956612561,675.31,0.00049041,31]
[322342722,1712956612621,157.041306,0.00045448,55]
[322342723,1712956612662,2237.47,0.00047945,31]
[322342724,1712956612695,500.0,0.00047945,31]
[322342725,1712956612732,675.31,0.00049315,120]
[322342726,1712956612765,203.15,0.00047671,31]
[322342727,1712956612807,500.0,0.00048219,31]
[322342728,1712956612846,2237.47,0.00048219,31]
[322342729,1712956612885,500.0,0.00046575,31]
[322342730,1712956612926,500.0,0.00046575,31]
[322342731,1712956612966,2237.47,0.00048493,31]
[322342732,1712956613005,500.0,0.00046849,31]
[322342733,1712956613043,2237.47,0.00048767,31]
[322342734,1712956613089,500.0,0.00048493,31]
[322342735,1712956613121,2237.47,0.00049041,31]
[322342736,1712956613159,500.0,0.00046575,31]
[322342737,1712956613192,500.0,0.00047123,31]
[322342738,1712956613238,500.0,0.00048767,31]
[322342739,1712956613282,2237.47,0.00049315,120]
[322342740,1712956613323,500.0,0.00047397,31]
[322342741,1712956613369,500.0,0.00049041,31]
[322342742,1712956613434,500.0,0.00046575,31]
[322342743,1712956613483,500.0,0.00047671,31]
[322342744,1712956613532,500.0,0.00049315,120]
[322342745,1712956613567,500.0,0.00046849,31]
[322342746,1712956613611,500.0,0.00046575,31]
[322342747,1712956613646,500.0,0.00047945,31]
[322342748,1712956613698,500.0,0.00047123,31]
[322342749,1712956613732,500.0,0.00046849,31]
[322342750,1712956613774,500.0,0.00048219,31]
[322342751,1712956613876,500.0,0.00047397,31]
[322342752,1712956613928,500.0,0.00048493,31]
[322342753,1712956613967,500.0,0.00046575,31]
[322342754,1712956614007,500.0,0.00048767,31]
[322342755,1712956614045,500.0,0.00046849,31]
[322342756,1712956614085,1160.47,0.00046575,31]
[322342757,1712956614128,500.0,0.00049041,31]
[322342758,1712956614166,500.0,0.00047123,31]
[322342759,1712956614200,1160.47,0.00046849,31]
[322342760,1712956614290,500.0,0.00047397,31]
[322342761,1712956614324,1160.47,0.00047123,31]
[322342762,1712956614376,500.0,0.00049315,120]
[322342763,1712956614409,500.0,0.00047671,31]
[322342764,1712956614449,1160.47,0.00047397,31]
[322342765,1712956614531,530.55453008,0.00046575,31]
[322342766,1712956614580,500.0,0.00047945,31]
[322342767,1712956614623,500.0,0.00046575,31]
[322342768,1712956614661,1160.47,0.00047671,31]
[322342769,1712956614694,500.0,0.00046575,31]
[322342770,1712956614740,500.0,0.00048219,31]
[322342771,1712956614776,500.0,0.00046849,31]
[322342772,1712956614813,1160.47,0.00047945,31]
[322342773,1712956614847,500.0,0.00046575,31]
[322342774,1712956614885,191.8,0.00047123,31]
[322342775,1712956614921,500.0,0.00046575,31]
[322342776,1712956614956,500.0,0.00048493,31]
[322342777,1712956614991,1160.47,0.00048219,31]
[322342778,1712956615028,500.0,0.00046849,31]
[322342779,1712956615060,500.0,0.00048767,31]
[322342780,1712956615103,1160.47,0.00048493,31]
[322342781,1712956615143,500.0,0.00046849,31]
[322342782,1712956615177,500.0,0.00047123,31]